Cogmind - Beta 16.1 @@@ ROGUE MODE // 2026.02.23 @ 21:56:58 Player: Ceorik Result: Destroyed by G-47 Trooper with Particle Gun Performance ------------- Evolutions (0) 0 Regions Visited (2) 400 Robots Destroyed (30) 150 Value Destroyed (530) 530 Prototype IDs (0) 0 Alien Tech Used (0) 0 Bonus (0) 0 TOTAL SCORE: 1080 Bonus ------- None Cogmind --------- Core Integrity 0/250 Matter 275/300 Energy 125/125 System Corruption 0% Temperature Cool (36) Movement Rolling (95) Ox1 Location -10/Mines Parts ------- > --- POWER (1) -------- Light Ion Engine > --- PROPULSION (2) --- Wheel Wheel > --- UTILITY (2) ------ Large Storage Unit Seismic Detector > --- WEAPON (2) ------- Small Laser Small Laser > --- INVENTORY (15) --- Light Ion Engine Wheel Improved Heat Sink Cooling System Cooling System Small Storage Unit Medium Matter Pod (100) Medium Matter Pod (100) Medium Matter Pod (100) Large Matter Pod (150) Propulsion Shielding Makeshift Hacking Suite Small Laser Mace Peak State ------------ > --- POWER ------------ Ion Engine > --- PROPULSION ------- Light Treads Wheel > --- UTILITY ---------- Large Storage Unit Propulsion Shielding > --- WEAPON ----------- Small Laser Light Assault Rifle > --- INVENTORY -------- Ion Engine Wheel Improved Heat Sink Cooling System Cooling System Small Storage Unit Medium Matter Pod Medium Matter Pod Medium Matter Pod Large Matter Pod High-capacity Matter Pod Seismic Detector Small Laser Small Laser Mace [Rating: 9] Favorites ----------- Power Ion Engine Engine Ion Engine Propulsion Light Treads Treads Light Treads Wheel Wheel Utility Large Storage Unit Device Seismic Detector Storage Large Storage Unit Protection Propulsion Shielding Weapon Small Laser Energy Gun Small Laser Ballistic Gun Assault Rifle Build | -11 -10 -10 ------- Run | Yrd Mat Min Slots Evolved . | . . . Power . | . . . Propulsion . | . . . Utility . | . . . Weapon . | . . . Parts Attached 21 | 7 12 2 Power 6 | 1 3 2 Engine 6 | 1 3 2 Core . | . . . Reactor . | . . . Propulsion 5 | 2 3 . Treads 3 | 2 1 . Leg . | . . . Wheel 2 | . 2 . Hover . | . . . Flight . | . . . Utility 5 | 2 3 . Device 1 | 1 . . Storage 2 | 1 1 . Processor . | . . . Hackware . | . . . Protection 2 | . 2 . Artifact . | . . . Weapon 5 | 2 3 . Energy Gun 3 | 1 2 . Energy Cannon . | . . . Ballistic Gun 2 | 1 1 . Ballistic Cannon . | . . . Launcher . | . . . Special Weapon . | . . . Impact Weapon . | . . . Slashing Weapon . | . . . Piercing Weapon . | . . . Special Melee Weapon . | . . . Unidentified Prototypes . | . . . Parts Lost 7 | . 6 1 Power 2 | . 1 1 Propulsion 2 | . 2 . Utility 1 | . 1 . Weapon 2 | . 2 . Highest Loss Streak 2 | . 2 1 To Critical Strikes . | . . . Average Backups 11 | 1 12 14 Power 1 | . 1 1 Propulsion . | . . 1 Utility 8 | . 8 9 Weapon 2 | . 2 2 Tool/Special . | . . . Unused Backups 17 | . 5 12 Power 1 | . . 1 Propulsion 2 | . 1 1 Utility 12 | . 4 8 Weapon 2 | . . 2 Tool/Special . | . . . Average Slot Usage (%) 96 | . 96 100 Engine 14 | . 14 14 Treads 17 | . 20 . Wheel 7 | . 4 28 Device 7 | . 5 14 Storage 14 | . 14 14 Protection 7 | . 8 . Energy Gun 14 | . 12 28 Ballistic Gun 13 | . 15 . Peak Build Rating 9 | 7 9 9 Average Rating 7 | 5 7 8 On Entrance 5 | . 7 9 Avg Prop Armor Cover (%) . | . . . Naked Turns . | . . . Heaviest Build 30 | 14 30 28 Greatest Support 40 | 40 40 20 Greatest Overweight (x) 1 | . 1 1 Average Overweight (x) . | . . 1 Largest Inventory Capacity 15 | 8 15 15 Average Capacity 13 | 7 14 15 Most Carried 15 | 2 15 15 Average Carried 12 | 1 12 14 Final Capacity 15 | 8 15 15 Final Carried 15 | 2 15 14 Class Distribution -------------------- 74% | Mutant 25% | Scavenger-Mutant Dominant Class ---------------- Mutant | -10/Materials Scavenger-Mutant | -10/Mines Resources | -11 -10 -10 ----------- Run | Yrd Mat Min Matter Collected 1082 | 303 779 . Remotely . | . . . Salvage Created 1002 | 116 886 . Parts 60 | 5 55 . Haulers Intercepted 1 | . 1 . Recyclers Shooed 2 | . 2 . Parts Field Recycled . | . . . Retrieved Matter . | . . . Parts Self-Destructed . | . . . Prevented . | . . . Parts Restored . | . . . Kills | -11 -10 -10 ------- Run | Yrd Mat Min Combat Hostiles Destroyed 15 | . 15 . Guns 15 | . 15 . Classes Destroyed 8 | 3 5 . Worker 8 | 1 7 . Builder 1 | . 1 . Tunneler 1 | 1 . . Hauler 1 | . 1 . Recycler 3 | 1 2 . Watcher 1 | . 1 . Swarmer 3 | . 3 . Grunt 12 | . 12 . Best Kill Streak 6 | 3 6 . Combat Bots Only 3 | . 3 . Max Kills in Single Turn 2 | 1 2 . Gunslinging . | . . . Exploded . | . . . Melee . | . . . Uniques/NPCs Destroyed . | . . . Combat | -11 -10 -10 -------- Run | Yrd Mat Min Hostile Shots Fired 157 | . 151 6 Missed 44 | . 43 1 Hits 113 | . 108 5 Melee 2 | . . 2 Projectile 111 | . 108 3 Critical Strikes 1 | . . 1 Damage Taken 1343 | . 1218 125 Core 256 | . 207 49 Absorbed by Shields . | . . . Redirected to Shielding 82 | . 82 . Core Remaining (%) 100 | 100 . . Volleys Fired 110 | 11 98 1 Largest 2 | 2 2 2 Hottest 80 | 60 80 80 Shots Fired 214 | 22 190 2 Gun 214 | 22 190 2 Cannon . | . . . Launcher . | . . . Special . | . . . Kinetic 118 | 11 107 . Thermal 68 | 11 55 2 Explosive . | . . . Electromagnetic 28 | . 28 . Robot Hit Streak 13 | 6 13 1 Robot Miss Streak 4 | 1 4 1 Penetration Max . | . . . Secondary Targets 1 | . 1 . Max Gunslinging Chain 1 | . 1 . Shots Hit Robots 140 | 17 122 1 Core Hits 53 | 4 49 . Critical Kills . | . . . Critical Parts Destroyed . | . . . Critical Strikes . | . . . Melee Attacks . | . . . Impact . | . . . Slashing . | . . . Piercing . | . . . Sneak Attacks . | . . . Combat Hostiles . | . . . Follow-up Attacks . | . . . Damage Inflicted 1729 | 211 1507 11 Guns 1583 | 211 1361 11 Cannons . | . . . Explosions 134 | . 134 . Melee . | . . . Ramming 12 | . 12 . Kinetic 792 | 109 683 . Thermal 682 | 102 569 11 Explosive . | . . . Electromagnetic 243 | . 243 . Impact . | . . . Slashing . | . . . Piercing . | . . . Highest Corruption . | . . . Average Corruption . | . . . Corruption Purged . | . . . Corruption Blocked . | . . . Overload Shots . | . . . Overflow Damage . | . . . Projectiles . | . . . Explosions . | . . . Melee . | . . . Knockbacks . | . . . Impact . | . . . Kinetic . | . . . Secondary . | . . . Self-Inflicted Damage 13 | . 13 . Shots 1 | . 1 . Rammed 5 | . 5 . Targets Rammed 5 | . 5 . Kicked . | . . . Crushed . | . . . Highest Temperature 266 | . 266 27 Average Temperature 58 | . 59 18 Received Heat Transfer 573 | . 555 18 Effects 2 | . 2 . Energy Bleed 1 | . 1 . Interference 1 | . 1 . Siege Activations . | . . . Martial Activations . | . . . Shielding Activations . | . . . Robots Disrupted . | . . . Combat Hostiles . | . . . Robots Corrupted . | . . . Combat Hostiles . | . . . Parts Fried 1 | . 1 . Impact Corruptions . | . . . Robots Melted . | . . . Combat Hostiles . | . . . Parts Melted 1 | . 1 . Heat Transferred 1375 | 225 1125 25 Parts Sabotaged . | . . . Parts Stolen . | . . . Parts Stripped . | . . . Power Chain Reactions 2 | . 2 . Alert | -11 -10 -10 ------- Run | Yrd Mat Min Maximum Alert Level . | . . . Low Security (%) 100 | 100 100 100 Level 1 . | . . . Level 2 . | . . . Level 3 . | . . . Level 4 . | . . . Level 5 . | . . . High Security . | . . . Max Security . | . . . Peak Influence 67 | 10 67 21 Initial 21 | . . 21 Average 20 | 1 24 3 Influence Increases 523 | 15 493 15 Destroy 0b10 Robot/C 300 | . 300 . Destroy 0b10 Robot/NC 75 | 15 60 . Destroy Leader 64 | . 64 . Successful Hack 4 | . 4 . Disable Machine 15 | . . 15 Destroy Structure 5 | . 5 . Lose Combat Pursuer 60 | . 60 . Influence Decreases 523 | 15 438 70 Entered New Map 34 | . . 34 Time Decay 424 | 15 388 21 Lost Part 50 | . 50 . Lost Ally 15 | . . 15 Squads Dispatched 4 | . 4 . Investigation 3 | . 3 . Extermination . | . . . Reinforcement 1 | . 1 . Assault . | . . . Garrison . | . . . Intercept . | . . . Searches Triggered . | . . . Construction Impeded . | . . . Haulers Reinforced . | . . . Active Scanning Responses . | . . . Cargo Convoy Interrupts . | . . . Stealth | -11 -10 -10 --------- Run | Yrd Mat Min Distress Signals 3 | . 2 1 Communications Jammed . | . . . Distress Signals . | . . . Times Spotted 41 | . 37 4 Peak Tracking Total 4 | . 4 2 Tactical Retreats 4 | . 4 . Traps | -11 -10 -10 ------- Run | Yrd Mat Min Traps Triggered 4 | . 4 . Indirectly . | . . . Trap Hack Attempts . | . . . Triggered . | . . . Disarmed . | . . . Reprogrammed . | . . . Reused . | . . . Traps Extracted . | . . . Installed . | . . . Triggered . | . . . Machines | -11 -10 -10 ---------- Run | Yrd Mat Min Machines Disabled 1 | . . 1 Max in Single Turn . | . . . Machines Repaired . | . . . Machines Dismantled . | . . . Machines Sabotaged . | . . . Overloaded Fab Kills . | . . . Hacking | -11 -10 -10 --------- Run | Yrd Mat Min Machines Accessed 4 | . 4 . Terminals 4 | . 4 . Fabricators . | . . . Repair Stations . | . . . Recycling Units . | . . . Scanalyzers . | . . . Garrison Access . | . . . Total Hacks 11 | . 11 . Successful 4 | . 4 . Failed 7 | . 7 . Catastrophic . | . . . Database Lockouts . | . . . Manual 11 | . 11 . Terminals 11 | . 11 . Fabricators . | . . . Repair Stations . | . . . Recycling Units . | . . . Scanalyzers . | . . . Garrison Access . | . . . Terminal Hacks 1 | . 1 . Branch Access Points 1 | . 1 . Fabricator Hacks . | . . . Repair Station Hacks . | . . . Recycling Unit Hacks . | . . . Scanalyzer . | . . . Garrison Access Hacks . | . . . Unauthorized Hacks 3 | . 3 . Terminals 3 | . 3 . Botnet 3 | . 3 . Fabricators . | . . . Repair Stations . | . . . Recycling Units . | . . . Scanalyzers . | . . . Garrison Access . | . . . Data Cores Recovered . | . . . Used . | . . . Hacking Detections 4 | . 4 . Full Trace Events . | . . . Feedback Events . | . . . Feedback Blocked . | . . . Robot Schematics Acquired . | . . . Robots Built . | . . . Authchips . | . . . Time . | . . . Total Robot Build Rating . | . . . Part Schematics Acquired . | . . . Parts Built . | . . . Authchips . | . . . Time . | . . . Total Part Build Rating . | . . . Part Studies Acquired . | . . . Parts Repaired . | . . . Time . | . . . Parts Recycled . | . . . Recycled Matter . | . . . Retrieved Matter . | . . . Retrieved Components . | . . . Parts Scanalyzed . | . . . Part Schematics Acquired . | . . . Parts Damaged . | . . . Bothacking | -11 -10 -10 ------------ Run | Yrd Mat Min Used RIF Installer . | . . . Robots Hacked . | . . . Non-combat . | . . . Combat . | . . . Robot Hacks Applied . | . . . Relay Couplers Released . | . . . Fabnet Peak Effective % . | . . . Robots Rewired . | . . . Allies Hacked . | . . . Hacks Repelled . | . . . Allies | -11 -10 -10 -------- Run | Yrd Mat Min Total Allies 2 | . . 2 Largest Group 2 | . . 2 Highest-Rated Group 49 | . . 49 Highest-Rated Ally 31 | . . 31 Total Orders . | . . . Ally Attacks 15 | . . 15 Total Damage 212 | . . 212 Kills 2 | . . 2 Allies Corrupted . | . . . Allies Melted . | . . . Intel | -11 -10 -10 ------- Run | Yrd Mat Min Active Infowar (turns) 742 | 11 532 199 Seismic 742 | 11 532 199 Robot Analysis Total . | . . . Derelict Logs Recovered 1 | . . 1 Drone Launches . | . . . Drone Recoveries . | . . . Exploration | -11 -10 -10 ------------- Run | Yrd Mat Min Turns Passed 1596 | 128 1269 199 Spaces Moved 788 | 54 551 183 Core 3 | 3 . . Treads 464 | 51 413 . Legs . | . . . Wheels 321 | . 138 183 Hover . | . . . Flight . | . . . Fastest Speed 50 | 50 95 95 Average Speed 139 | 153 152 95 Slowest Speed 240 | 160 240 95 Overloaded Moves . | . . . Propulsion Burnouts . | . . . Robots Hopped . | . . . Potential Cave-ins . | . . . Cave-ins Triggered . | . . . Exploration Rate (%) 36 | 5 79 24 Regions Visited 2 Branch Regions 1 Pre-discovered Areas . | . . . Known Exits Taken 1 | . 1 . Unknown Exits Taken 1 | 1 . . Scrap Searched . | . . . Spaces Dug . | . . . Terrain Destroyed 4 | . 4 . Melee . | . . . Projectile . | . . . AOE 4 | . 4 . Terrain Rammed . | . . . Walls Destroyed . | . . . Machines Disabled . | . . . Actions | -11 -10 -10 --------- Run | Yrd Mat Min Total 1073 | 74 794 205 Wait 109 | 1 91 17 Move 786 | 53 550 183 Hop . | . . . Pick Up 27 | 2 24 1 Fast Attach 8 | 7 1 . Attach 7 | . 5 2 Detach . | . . . Swap 12 | . 11 1 Drop 9 | . 9 . Fire 110 | 11 98 1 Melee . | . . . Ram . | . . . Kick . | . . . Crush 5 | . 5 . Escape Stasis . | . . . Rewire . | . . . Trap . | . . . Miscellaneous . | . . . Route ------- -11/Scrapyard -10/Materials (discovered 4 exits: [*Mat x3] / *Min) -10/Mines History --------- Turn | Location | Event 4 | -11/Scrapyard | Discovered new exit (range 16) 129 | -11/Scrapyard | Entered Materials 318 | -10/Materials | Build established: Mutant 658 | -10/Materials | Discovered new exit (range 3) 810 | -10/Materials | Discovered new exit (range 8) 913 | -10/Materials | Core integrity fell below 50% 1248 | -10/Materials | Discovered new exit (range 9) 1326 | -10/Materials | Core integrity fell below 20% 1343 | -10/Materials | Identified exit to Mines 1398 | -10/Materials | Entered Mines 1399 | -10/Mines | Assembled infested the area 1404 | -10/Mines | Assisted by a Guerilla fighting off Assembled 1493 | -10/Mines | Build established: Scavenger-Mutant 1597 | -10/Mines | Destroyed by G-47 Trooper with Particle Gun Last Messages --------------- mess in Materials. Shooting at robots and generally destroying stuff raised the alert level high enough to trigger assault squads over in the main complex, and they later decided the best way to defend their interests would be to start expanding in this direction." 01432_ Acquired derelict log, extracted data. Data stored: Recycling entrances (x1). 01437_ A pair of derelicts emerge from the shadows: "We're, um, lost. You wouldn't happen to know the way out of here, would you?" 01467_ Ion Engine destroyed. 01471_ Ion Engine severed. 01493_ T-07 Excavator destroyed. 01493_ as-41945 destroyed. 01507_ Acquired Mak. Hacking Suite. 01528_ The unstable cave ceiling collapses. 01572_ Seismic Survey Station disabled. 01585_ LO-M5W(g) destroyed. Map ----- +----------------------------------------------------+ | | | | | | | | | | | | | | | | | | | | | | | | | | | | | | | ???????????????????????????? ? ?? | | ??###########?????????????# # ??? | | ?# ############## ???? | | ?? """ """ #% #%### # | | ?# """ """ ########## # % | | ?# "" !"" #??????## %=% #??? | | ?# *=%= #?????## # # # # | | ?# " !"" #?????# # #???? | | ?# """ """ #?????### ## #??? | | ?# """ """ #?????# #?#??? | | ?# gg @ #?????### # ##????? | | ?# #?????# # #?????? | | ?# #?????# # #?????? | | ?# #?????# ###????? | | ?## #########?????## #????? | | ??#????????????????### ### #????? | | ????????????????????## #???#????# | | ????????????????##### #?# ###### | | ???????????????## ##?# | | ???????????????# ##?######## | | ???????????????# ###??????# | | ???????????????## ##?????? | | ????????????????### #?????? | | ??????????????????## # #?????# | | ???????????????????# ## #????## | | ???????????????????# ### #????# | | ??????????????????# #?# #????## | | ?????????????????# ##?# #?????# | | ?????????????????#####??# ####??? | | ????????????????????????# #??# | | ????????????????????????# #?## | | ????????????????????????#### ### | | ???????????????????????????# | | ???????????????????????????##### | | ???????????????????????????????### | +----------------------------------------------------+ Best States ------------- Heat Dissipation 25 Energy Generation 10 Energy Capacity 250 Matter Stores 300 Matter Capacity 300 Sight Range 16 Terrain Scan Density 10 Propulsion Shielding 33 Evasion (%) 41 Recoil Reduction 2 Item Schematics ----------------- None Robot Schematics ------------------ None Fabricated ------------ Nothing Repaired ---------- Nothing Studied --------- None Alien Tech Used ----------------- None Achievements -------------- None Challenges ------------ None Game ------ Seed VoltaicSingularityWings Manual? 0 Play Time 00:13:35 Cumulative 61.2 hours Start 2026.02.23 @ 21:44:36 End 2026.02.23 @ 21:56:58 Sessions 1 Manual Loads 0 Difficulty Rogue Special Mode None Game No. 64 Rogue 64 Adventurer 0 Explorer 0 Win Type - Total 0 Types 0/0/0/0/0/0/0/0/0/0 Lore% 54 Gallery% 39 Achievement% 33 Wizard Run 0 Options --------- Layout 1 ASCII 0 Keyboard 0 Movement Mouse Keybinds 0 Fullscreen 1 Font 24/Swanston Map View 50x35 Zoom Use 0% Tactical HUD 1 Map Filters NONE Filters NONE Steam 1 RUN: 584774c2-c4ec-4588-8839-a84b796faa0e